fUST/lending_fUST_20240925
["ID","MTS","AMOUNT","RATE_DAILY","PERIOD"]
[339090820,1727236242553,-151.0,0.00016428,2]
[339090821,1727236242563,-176.176383,0.00016428,2]
[339090822,1727236242572,-176.176383,0.00016428,2]
[339090823,1727236242582,-176.176383,0.00016428,2]
[339090824,1727236242591,-176.176383,0.00016428,2]
[339090825,1727236242601,-176.176383,0.00016428,2]
[339090826,1727236242611,-176.176383,0.00016428,2]
[339090828,1727236242621,-176.176383,0.00016428,2]
[339090829,1727236242631,-176.176383,0.00016428,2]
[339090830,1727236242641,-1473.990331,0.00016428,2]
[339090831,1727236242651,-1473.990331,0.00016428,2]
[339090832,1727236242661,-1473.990331,0.00016428,2]
[339090833,1727236242671,-1473.990331,0.00016428,2]
[339090834,1727236242681,-1473.990331,0.00016428,2]
[339090835,1727236242691,-1473.990331,0.00016428,2]
[339090836,1727236242700,-1473.990331,0.00016428,2]
[339090837,1727236242710,-1473.990331,0.00016428,2]
[339090838,1727236242720,-536.791048,0.00016428,2]
[339090839,1727236242732,-536.791048,0.00016428,2]
[339090840,1727236242746,-536.791048,0.00016428,2]
[339090841,1727236242759,-536.791048,0.00016428,2]
[339090842,1727236242769,-536.791048,0.00016428,2]
[339090843,1727236242780,-536.791048,0.00016428,2]
[339090844,1727236242790,-536.791048,0.00016428,2]
[339090845,1727236242801,-536.791048,0.00016428,2]
[339090846,1727236242811,-188.524895,0.00016428,2]
[339090848,1727236242822,-188.524895,0.00016428,2]
[339090849,1727236242832,-188.524895,0.00016428,2]
[339090850,1727236242842,-188.524895,0.00016428,2]
[339090851,1727236242853,-188.524895,0.00016428,2]
[339090852,1727236242864,-188.524895,0.00016428,2]
[339090853,1727236242875,-188.524895,0.00016428,2]
[339090854,1727236242886,-188.524895,0.00016428,2]
[339090856,1727236242896,-151.0,0.00016428,2]
[339090858,1727236242908,-151.0,0.00016428,2]
[339090859,1727236242918,-151.0,0.00016428,2]
[339090860,1727236242929,-151.0,0.00016428,2]
[339090861,1727236242939,-151.0,0.00016428,2]
[339090862,1727236242950,-151.0,0.00016428,2]
[339090863,1727236242963,-151.0,0.00016428,2]
[339090864,1727236242974,-151.0,0.00016428,2]
[339090865,1727236242985,-151.0,0.00016428,2]
[339090866,1727236242996,-151.0,0.00016428,2]
[339090867,1727236243009,-151.0,0.00016428,2]
[339090868,1727236243021,-151.0,0.00016428,2]
[339090869,1727236243033,-489.377713,0.00016428,2]
[339090870,1727236243047,-489.377713,0.00016428,2]
[339090871,1727236243059,-489.377713,0.00016428,2]
[339090872,1727236243073,-489.377713,0.00016428,2]
[339090874,1727236243085,-616.995615,0.00016428,2]
[339090875,1727236243096,-616.995615,0.00016428,2]
[339090876,1727236243107,-616.995615,0.00016428,2]
[339090877,1727236243119,-616.995615,0.00016428,2]
[339090878,1727236243131,-489.377713,0.00016428,2]
[339090879,1727236243143,-489.377713,0.00016428,2]
[339090880,1727236243153,-489.377713,0.00016428,2]
[339090881,1727236243164,-616.995615,0.00016428,2]
[339090882,1727236243175,-489.443216,0.00016428,2]
[339090883,1727236243185,-489.377713,0.00016428,2]
[339090884,1727236243199,-616.995615,0.00016428,2]
[339090885,1727236243209,-489.443216,0.00016428,2]
[339090886,1727236243219,-616.995615,0.00016428,2]
[339090887,1727236243233,-616.995615,0.00016428,2]
[339090888,1727236243245,-489.443216,0.00016428,2]
[339090889,1727236243255,-489.443216,0.00016428,2]
[339090890,1727236243266,-489.443216,0.00016428,2]
[339090891,1727236243277,-489.443216,0.00016428,2]
[339090892,1727236243287,-489.443216,0.00016428,2]
[339090893,1727236243297,-489.443216,0.00016428,2]
[339090894,1727236243307,-151.0,0.00016428,2]
[339090895,1727236243318,-151.0,0.00016428,2]
[339090896,1727236243327,-151.0,0.00016428,2]
[339090897,1727236243337,-151.0,0.00016428,2]
[339090898,1727236243347,-151.0,0.00016428,2]
[339090899,1727236243357,-151.0,0.00016428,2]
[339090900,1727236243367,-151.0,0.00016428,2]
[339090901,1727236243377,-151.0,0.00016428,2]
[339090902,1727236243387,-1731.039566,0.00016428,2]
[339090904,1727236243397,-1731.039566,0.00016428,2]
[339090906,1727236243408,-1731.039566,0.00016428,2]
[339090909,1727236243419,-1731.039566,0.00016428,2]
[339090911,1727236243429,-1731.039566,0.00016428,2]
[339090912,1727236243440,-1731.039566,0.00016428,2]
[339090913,1727236243449,-1731.039566,0.00016428,2]
[339090914,1727236243459,-1731.039566,0.00016428,2]
[339090915,1727236243470,-843.933867,0.00016428,2]
[339090916,1727236243481,-151.0,0.00016428,2]
[339090917,1727236243491,-151.0,0.00016428,2]
[339090918,1727236243502,-843.933867,0.00016428,2]
[339090919,1727236243512,-843.933867,0.00016428,2]
[339090920,1727236243522,-151.0,0.00016428,2]
[339090921,1727236243533,-843.933867,0.00016428,2]
[339090922,1727236243543,-151.0,0.00016428,2]
[339090923,1727236243554,-843.933867,0.00016428,2]
[339090924,1727236243565,-843.933867,0.00016428,2]
[339090925,1727236243575,-843.933867,0.00016428,2]
[339090926,1727236243585,-843.933867,0.00016428,2]
[339090927,1727236243595,-460.924538,0.00016428,2]
[339090928,1727236243604,-460.924538,0.00016428,2]
[339090929,1727236243615,-460.924538,0.00016428,2]
[339090930,1727236243625,-460.924538,0.00016428,2]
[339090931,1727236243635,-460.924538,0.00016428,2]
[339090932,1727236243645,-460.924538,0.00016428,2]
[339090933,1727236243654,-460.924538,0.00016428,2]
[339090934,1727236243664,-460.924538,0.00016428,2]
[339090935,1727236243674,-307.922034,0.00016428,2]
[339090936,1727236243684,-307.922034,0.00016428,2]
[339090937,1727236243694,-307.922034,0.00016428,2]
[339090938,1727236243704,-307.922034,0.00016428,2]
[339090939,1727236243714,-307.922034,0.00016428,2]
[339090940,1727236243726,-307.922034,0.00016428,2]
[339090941,1727236243736,-307.922034,0.00016428,2]
[339090942,1727236243747,-307.922034,0.00016428,2]
[339090943,1727236243760,-7343.289458,0.00016428,2]
[339090944,1727236243770,-7343.289458,0.00016428,2]
[339090945,1727236243780,-7343.289458,0.00016428,2]
[339090946,1727236243790,-7343.289458,0.00016428,2]
[339090947,1727236243800,-7343.289458,0.00016428,2]
[339090948,1727236243811,-7343.289458,0.00016428,2]
[339090949,1727236243822,-7343.289458,0.00016428,2]
[339090950,1727236243834,-7343.289458,0.00016428,2]
[339090951,1727236243844,-151.0,0.00016428,2]
[339090952,1727236243856,-151.0,0.00016428,2]
[339090953,1727236243866,-151.0,0.00016428,2]
[339090954,1727236243876,-194.587567,0.00016428,2]
[339090955,1727236243886,-1968.140649,0.00016428,2]
[339090956,1727236243896,-1968.140649,0.00016428,2]
[339090957,1727236243907,-1968.140649,0.00016428,2]
[339090958,1727236243917,-1968.140649,0.00016428,2]
[339090959,1727236243927,-1968.140649,0.00016428,2]
[339090960,1727236243937,-1968.140649,0.00016428,2]
[339090961,1727236243947,-1968.140649,0.00016428,2]
[339090962,1727236243958,-1968.140649,0.00016428,2]
[339090963,1727236243972,-1968.140649,0.00016428,2]
[339090964,1727236243986,-1968.140649,0.00016428,2]
[339090965,1727236243996,-1968.140649,0.00016428,2]
[339090966,1727236244006,-1968.14064,0.00016428,2]
[339090967,1727236244017,-1526.076881,0.00016428,2]
[339090968,1727236244028,-1526.076881,0.00016428,2]
[339090969,1727236244038,-1526.076881,0.00016428,2]
[339090970,1727236244048,-1526.076881,0.00016428,2]
[339090971,1727236244059,-1526.076881,0.00016428,2]
[339090972,1727236244069,-1526.076881,0.00016428,2]
[339090973,1727236244079,-1526.076881,0.00016428,2]
[339090974,1727236244099,-1526.076881,0.00016428,2]
[339090975,1727236244111,-151.0,0.00016428,2]
[339090976,1727236244122,-1526.076881,0.00016428,2]
[339090977,1727236244132,-151.0,0.00016428,2]
[339090978,1727236244143,-1526.076875,0.00016428,2]
[339090979,1727236244154,-151.0,0.00016428,2]
[339090980,1727236244164,-299.447619,0.00016428,2]
[339090981,1727236244174,-151.0,0.00016428,2]
[339090982,1727236244184,-151.0,0.00016428,2]
[339090983,1727236244194,-151.0,0.00016428,2]
[339090984,1727236244204,-55959.6939177,0.00016428,2]
[339090985,1727236244215,-500.0,0.00016438,2]
[339090986,1727236244225,-500.0,0.00016438,2]
[339090987,1727236244236,-500.0,0.00016438,2]
[339090988,1727236244246,-500.0,0.00016438,2]
[339090989,1727236244256,-1063.650081,0.00016438,2]
[339090990,1727236244267,-1063.650081,0.00016438,2]
[339090991,1727236244277,-1063.650081,0.00016438,2]
[339090992,1727236244287,-445.07096973,0.00016438,2]
[339090993,1727236244298,-1063.650081,0.00016438,2]
[339090994,1727236244308,-1063.650081,0.00016438,2]
[339090995,1727236244319,-1063.650081,0.00016438,2]
[339090996,1727236244330,-500.0,0.00016438,2]
[339090997,1727236244340,-500.0,0.00016438,2]
[339090998,1727236244350,-500.0,0.00016438,2]
[339090999,1727236244360,-500.0,0.00016438,2]
[339091000,1727236244370,-500.0,0.00016438,2]
[339091001,1727236244382,-500.0,0.00016438,2]
[339091002,1727236244394,-171.765194,0.00016438,2]
[339091003,1727236244407,-171.765194,0.00016438,2]
[339091004,1727236244419,-171.765194,0.00016438,2]
[339091005,1727236244431,-392.44710541,0.00016438,2]
[339091006,1727236244442,-500.0,0.00016438,2]
[339091007,1727236244452,-171.765194,0.00016438,2]
[339091008,1727236244462,-171.765194,0.00016438,2]
[339091009,1727236244472,-171.765194,0.00016438,2]
[339091010,1727236244483,-509.68535942,0.00016438,2]
[339091011,1727236244493,-500.0,0.00016438,2]
[339091012,1727236244503,-281.3656605,0.00016438,2]
[339091013,1727236245172,-218.6343395,0.00016438,2]
[339091014,1727236245182,-500.0,0.00016438,2]
[339091015,1727236245192,-503.72607881,0.00016438,2]
[339091016,1727236245203,-500.0,0.00016438,2]
[339091017,1727236245213,-500.0,0.00016438,2]
[339091018,1727236245225,-500.0,0.00016438,2]
[339091019,1727236245246,-500.0,0.00016438,2]
[339091020,1727236245255,-286.83517653,0.00016438,2]
[339091021,1727236245266,-92.09830626,0.00016438,2]
[339091027,1727236246238,-407.90169374,0.00016438,2]
[339091028,1727236246247,-500.0,0.00016438,2]
[339091029,1727236246257,-392.70929979,0.00016438,2]
[339091030,1727236246267,-595.44,0.00016438,2]
[339091031,1727236246276,-500.0,0.00016438,2]
[339091032,1727236246286,-500.0,0.00016438,2]
[339091033,1727236246296,-500.0,0.00016438,2]
[339091034,1727236246307,-500.0,0.00016438,2]
[339091035,1727236246317,-1655.581779,0.00016438,2]
[339091036,1727236246327,-1655.581779,0.00016438,2]
[339091037,1727236246337,-1655.581779,0.00016438,2]
[339091038,1727236246346,-500.0,0.00016438,2]
[339091039,1727236246356,-1655.581779,0.00016438,2]
[339091040,1727236246365,-1655.581779,0.00016438,2]
[339091041,1727236246375,-1655.581779,0.00016438,2]
[339091042,1727236246386,-164.334139,0.00016438,2]
[339091043,1727236246395,-164.334139,0.00016438,2]
[339091044,1727236246405,-542.679565,0.00016438,2]
[339091045,1727236246415,-164.334139,0.00016438,2]
[339091046,1727236246425,-542.679565,0.00016438,2]
[339091047,1727236246435,-164.334139,0.00016438,2]
[339091048,1727236246445,-542.679565,0.00016438,2]
[339091049,1727236246455,-164.334139,0.00016438,2]
[339091050,1727236246464,-542.679565,0.00016438,2]
[339091051,1727236246475,-164.334139,0.00016438,2]
[339091052,1727236246485,-542.679565,0.00016438,2]
[339091053,1727236246495,-164.334139,0.00016438,2]
[339091054,1727236246504,-542.679565,0.00016438,2]
[339091055,1727236246514,-164.334139,0.00016438,2]
[339091056,1727236246525,-542.679565,0.00016438,2]
[339091057,1727236246537,-542.679565,0.00016438,2]
[339091058,1727236246549,-164.334139,0.00016438,2]
[339091059,1727236246558,-164.334139,0.00016438,2]
[339091060,1727236246567,-164.334139,0.00016438,2]
[339091061,1727236246578,-164.334139,0.00016438,2]
[339091062,1727236246587,-542.679565,0.00016438,2]
[339091063,1727236246598,-164.334139,0.00016438,2]
[339091064,1727236246610,-542.679565,0.00016438,2]
[339091065,1727236246620,-164.334139,0.00016438,2]
[339091066,1727236246631,-542.679565,0.00016438,2]
[339091067,1727236246642,-164.334139,0.00016438,2]
[339091068,1727236246654,-542.679565,0.00016438,2]
[339091069,1727236246664,-164.334139,0.00016438,2]
[339091070,1727236246675,-542.679565,0.00016438,2]
[339091071,1727236246686,-542.679565,0.00016438,2]
[339091072,1727236246696,-164.334139,0.00016438,2]
[339091073,1727236246705,-542.679565,0.00016438,2]
[339091074,1727236246715,-542.679565,0.00016438,2]
[339091075,1727236246725,-164.334139,0.00016438,2]
[339091076,1727236246735,-164.334139,0.00016438,2]
[339091077,1727236246744,-164.334142,0.00016438,2]
[339091078,1727236246754,-500.0,0.00016438,2]
[339091079,1727236246764,-500.0,0.00016438,2]
[339091080,1727236246776,-500.0,0.00016438,5]
[339091081,1727236246786,-500.0,0.00016438,2]
[339091082,1727236246796,-500.0,0.00016438,2]
[339091083,1727236246805,-500.0,0.00016438,2]
[339091084,1727236246815,-151.0,0.00016438,2]
[339091085,1727236246825,-151.0,0.00016438,2]
[339091086,1727236246835,-743.95,0.00016438,2]
[339091087,1727236246844,-151.0,0.00016438,2]
[339091088,1727236246854,-151.0,0.00016438,2]
[339091089,1727236246864,-500.95502782,0.00016438,2]
[339091090,1727236246873,-196.561743,0.00016438,2]
[339091091,1727236246883,-503.83710198,0.00016438,2]
[339091092,1727236246895,-152.44789,0.00016438,2]
[339091093,1727236246914,-151.0,0.00016438,2]
[339091094,1727236246926,-151.0,0.00016438,2]
[339091095,1727236246937,-151.0,0.00016438,2]
[339091096,1727236246947,-151.0,0.00016438,2]
[339091097,1727236246958,-151.0,0.00016438,2]
[339091098,1727236246971,-501.35978285,0.00016438,2]
[339091099,1727236246982,-151.0,0.00016438,2]
[339091100,1727236246992,-151.0,0.00016438,2]
[339091101,1727236247003,-151.0,0.00016438,2]
[339091102,1727236247013,-500.0,0.00016438,2]
[339091103,1727236247023,-151.0,0.00016438,2]
[339091104,1727236247034,-500.0,0.00016438,2]
[339091105,1727236247045,-151.0,0.00016438,2]
[339091106,1727236247055,-215.990506,0.00016438,2]
[339091107,1727236247065,-500.0,0.00016438,2]
[339091108,1727236247075,-508.54848624,0.00016438,2]
[339091109,1727236247086,-500.0,0.00016438,2]
[339091110,1727236247096,-500.0,0.00016438,2]
[339091111,1727236247106,-500.0,0.00016438,2]
[339091112,1727236247116,-236.220723,0.00016438,2]
[339091113,1727236247126,-500.0,0.00016438,2]
[339091114,1727236247136,-236.220723,0.00016438,2]
[339091115,1727236247147,-236.220723,0.00016438,2]
[339091116,1727236247157,-236.220723,0.00016438,2]
[339091117,1727236247168,-236.220723,0.00016438,2]
[339091118,1727236247178,-500.0,0.00016438,2]
[339091119,1727236247188,-236.220723,0.00016438,2]
[339091120,1727236247198,-236.220723,0.00016438,2]
[339091121,1727236247208,-236.220723,0.00016438,2]
[339091122,1727236247220,-500.0,0.00016438,2]
[339091123,1727236247231,-236.220723,0.00016438,2]
[339091124,1727236247243,-236.220723,0.00016438,2]
[339091125,1727236247253,-236.220723,0.00016438,2]
[339091126,1727236247263,-236.220723,0.00016438,2]
[339091127,1727236247274,-236.220723,0.00016438,2]
[339091128,1727236247285,-236.220723,0.00016438,2]
[339091129,1727236247295,-502.39324892,0.00016438,2]
[339091130,1727236247305,-236.220723,0.00016438,2]
[339091131,1727236247315,-236.220723,0.00016438,2]
[339091132,1727236247326,-236.220723,0.00016438,2]
[339091133,1727236247337,-236.220723,0.00016438,2]
[339091134,1727236247349,-500.0,0.00016438,2]
[339091135,1727236247359,-236.220723,0.00016438,2]
[339091136,1727236247369,-236.220714,0.00016438,2]
[339091137,1727236247378,-500.0,0.00016438,2]
[339091138,1727236247388,-94.6777764,0.00016438,2]
[339091139,1727236253877,246.0,0.00014072,2]
[339091154,1727236796755,7008.0525792,0.00013775,2]
[339091159,1727237079915,1770.664098,0.00013788,2]
[339091160,1727237170611,250.0,0.00013908,2]
[339091161,1727237170648,250.0,0.00013946,2]
[339091162,1727237170802,250.0,0.00013984,2]
[339091163,1727237171007,250.0,0.00014023,2]
[339091164,1727237171326,250.0,0.00014061,2]
[339091165,1727237171552,250.0,0.00014099,2]
[339091166,1727237290235,24900.0,0.00013915,2]
[339091279,1727237440237,-250.0,0.00014137,2]
[339091280,1727237440246,-250.0,0.00014175,2]
[339091281,1727237440352,-250.0,0.00014213,2]
[339091282,1727237440415,-250.0,0.00014251,2]
[339091283,1727237440424,-250.0,0.0001429,2]
[339091284,1727237440434,-250.0,0.00014328,2]
[339091285,1727237440443,-250.0,0.00014366,2]
[339091286,1727237440451,-250.0,0.00014404,2]
[339091287,1727237440460,-250.0,0.00014442,2]
[339091288,1727237440470,-1770.664098,0.00014473,2]
[339091289,1727237440479,-250.0,0.0001448,2]
[339091290,1727237440488,-250.0,0.00014518,2]
[339091291,1727237440497,-250.0,0.00014557,2]
[339091292,1727237440506,-250.0,0.00014595,2]
[339091293,1727237440515,-250.0,0.00014633,2]
[339091294,1727237440524,-500.0,0.00014689,2]
[339091295,1727237440533,-500.0,0.00015,2]
[339091296,1727237440543,-1770.664098,0.00015158,2]
[339091297,1727237440552,-266.59414625,0.00016065,2]
[339091298,1727237440561,-300.0,0.00016066,2]
[339091299,1727237440571,-300.0,0.00016066,2]
[339091300,1727237440581,-477.273364,0.00016067,2]
[339091301,1727237440594,-477.273364,0.00016067,2]
[339091302,1727237440603,-2416.873656,0.00016067,2]
[339091303,1727237440612,-2416.873656,0.00016067,2]
[339091304,1727237440622,-804.439014,0.00016067,2]
[339091305,1727237440631,-804.439014,0.00016067,2]
[339091306,1727237440641,-477.273364,0.00016147,2]
[339091307,1727237440650,-477.273364,0.00016147,2]
[339091308,1727237440660,-4701.18581033,0.00016167,2]
[339091309,1727237440670,-500.0,0.00016217,2]
[339091310,1727237440679,-500.0,0.00016217,2]
[339091311,1727237440688,-500.0,0.00016217,2]
[339091312,1727237440697,-530.07299401,0.00016217,2]
[339091313,1727237440706,-7146.18197968,0.00016218,2]
[339091314,1727237440716,-477.273364,0.00016256,2]
[339091315,1727237440726,-477.273364,0.00016256,2]
[339091316,1727237440735,-477.273364,0.00016256,2]
[339091317,1727237440744,-477.273364,0.00016256,2]
[339091318,1727237440753,-477.273364,0.00016267,2]
[339091319,1727237440762,-477.273364,0.00016267,2]
[339091320,1727237440772,-477.273364,0.00016267,2]
[339091321,1727237440781,-477.273364,0.00016267,2]
[339091322,1727237440790,-477.273364,0.00016267,2]
[339091323,1727237440799,-477.273364,0.00016267,2]
[339091324,1727237440808,-477.273364,0.00016267,2]
[339091325,1727237440817,-477.273364,0.00016267,2]
[339091326,1727237440826,-477.273364,0.00016267,2]
[339091327,1727237440835,-477.273364,0.00016267,2]
[339091328,1727237440845,-477.273364,0.00016267,2]
[339091329,1727237440855,-477.273355,0.00016267,2]
[339091330,1727237440864,-2416.873656,0.00016267,2]
[339091331,1727237440873,-2416.873656,0.00016267,2]
[339091332,1727237440883,-2416.873656,0.00016267,2]
[339091333,1727237440892,-2416.873656,0.00016267,2]
[339091334,1727237440901,-2416.873656,0.00016267,2]
[339091335,1727237440910,-2416.873656,0.00016267,2]
[339091336,1727237440919,-804.439014,0.00016267,2]
[339091337,1727237440928,-804.439014,0.00016267,2]
[339091338,1727237440937,-804.439014,0.00016267,2]
[339091339,1727237440947,-804.439014,0.00016267,2]
[339091340,1727237440955,-804.439014,0.00016267,2]
[339091341,1727237440965,-804.439014,0.00016267,2]
[339091342,1727237440974,-312.1129983,0.00016327,2]
[339091343,1727237440983,-500.0,0.00016327,2]
[339091344,1727237440992,-175.04164938,0.00016327,2]
[339091345,1727237441003,-169.43918135,0.00016327,2]
[339091346,1727237441012,-226.17317714,0.00016327,2]
[339091347,1727237441021,-500.0,0.00016327,2]
[339091348,1727237441030,-500.0,0.00016327,2]
[339091349,1727237441039,-299.925789,0.00016328,2]
[339091350,1727237441049,-299.925789,0.00016328,2]
[339091351,1727237441058,-151.0,0.00016328,2]
[339091352,1727237441068,-151.0,0.00016328,2]
[339091353,1727237441077,-763.03844,0.00016328,2]
[339091354,1727237441086,-151.0,0.00016328,2]
[339091355,1727237441096,-151.0,0.00016328,2]
[339091356,1727237441105,-151.0,0.00016328,2]
[339091357,1727237441115,-151.0,0.00016328,2]
[339091358,1727237441124,-151.0,0.00016328,2]
[339091359,1727237441133,-151.0,0.00016328,2]
[339091360,1727237441143,-322.647176,0.00016328,2]
[339091361,1727237441153,-322.647176,0.00016328,2]
[339091362,1727237441163,-322.647176,0.00016328,2]
[339091363,1727237441172,-322.647176,0.00016328,2]
[339091364,1727237441181,-151.0,0.00016328,2]
[339091365,1727237441190,-151.0,0.00016328,2]
[339091366,1727237441200,-1803.519076,0.00016328,2]
[339091367,1727237441210,-1803.519076,0.00016328,2]
[339091368,1727237441220,-1803.519076,0.00016328,2]
[339091369,1727237441229,-1803.519076,0.00016328,2]
[339091370,1727237441239,-151.0,0.00016328,2]
[339091371,1727237441248,-736.995165,0.00016328,2]
[339091372,1727237441258,-151.0,0.00016328,2]
[339091373,1727237441267,-151.0,0.00016328,2]
[339091374,1727237441276,-759.54048,0.00016328,2]
[339091375,1727237441286,-759.54048,0.00016328,2]
[339091376,1727237441296,-282.671006,0.00016328,2]
[339091377,1727237441305,-736.995165,0.00016328,2]
[339091378,1727237441315,-617.820735,0.00016328,2]
[339091379,1727237441324,-759.54048,0.00016328,2]
[339091380,1727237441333,-759.54048,0.00016328,2]
[339091381,1727237441343,-617.820735,0.00016328,2]
[339091382,1727237441352,-151.0,0.00016328,2]
[339091383,1727237441362,-1211.727697,0.00016328,2]
[339091384,1727237441372,-151.0,0.00016328,2]
[339091385,1727237441382,-1211.727697,0.00016328,2]
[339091386,1727237441391,-960.750512,0.00016328,2]
[339091387,1727237441400,-960.750512,0.00016328,2]
[339091388,1727237441409,-215.545424,0.00016328,2]
[339091389,1727237441418,-215.545424,0.00016328,2]
[339091390,1727237441427,-151.0,0.00016328,2]
[339091391,1727237441436,-274.616911,0.00016328,2]
[339091392,1727237441445,-274.616911,0.00016328,2]
[339091393,1727237441454,-1827.833264,0.00016328,2]
[339091394,1727237441464,-1827.833264,0.00016328,2]
[339091395,1727237441473,-151.0,0.00016328,2]
[339091396,1727237441482,-321.477418,0.00016328,2]
[339091397,1727237441491,-321.477418,0.00016328,2]
[339091398,1727237441500,-445.891827,0.00016328,2]
[339091399,1727237441509,-445.891827,0.00016328,2]
[339091400,1727237441518,-1158.907245,0.00016328,2]
[339091401,1727237441526,-1158.907245,0.00016328,2]
[339091402,1727237441536,-83939.5408765,0.00016328,2]
[339091403,1727237441544,-36085.49449982,0.00016328,2]
[339091412,1727237443404,-128.00167115,0.00016328,2]
[339091447,1727238566148,-500.0,0.00014717,2]
[339091448,1727238566173,-500.0,0.00014717,2]
[339091449,1727238566197,-500.0,0.00014717,2]
[339091450,1727238566222,-220.15298089,0.00014717,2]
[339091473,1727238632413,-409.25879365,0.00014717,2]
[339091474,1727238632426,-300.0,0.00014717,2]
[339091475,1727238632436,-300.0,0.00014717,2]
[339091476,1727238632448,-576.60776423,0.00014718,2]
[339091477,1727238632461,-3055.187583,0.00014718,2]
[339091478,1727238632473,-502.39706665,0.00014718,2]
[339091479,1727238632484,-758.51949775,0.00014718,2]
[339091480,1727238632496,-2175.13508955,0.00014718,2]
[339091481,1727238632508,-536.04086264,0.00014718,2]
[339091493,1727238638611,-17296.11213618,0.00014718,2]
[339091494,1727238638621,-742.941,0.00015325,2]
[339091495,1727238638630,-7146.18197968,0.00015896,2]
[339091496,1727238638639,-150.0,0.00016048,2]
[339091497,1727238638648,-420.0,0.00016111,2]
[339091498,1727238638658,-420.0,0.00016188,2]
[339091499,1727238638667,-153.0,0.000162,2]
[339091500,1727238638679,-306.0,0.000162,2]
[339091501,1727238638696,-499.15561919,0.00016227,2]
[339091502,1727238638706,-500.0,0.00016256,2]
[339091503,1727238638715,-153.0,0.000163,2]
[339091504,1727238638724,-153.0,0.000163,2]
[339091505,1727238638733,-2300.82525,0.00016334,2]
[339091506,1727238638743,-299.925789,0.00016338,2]
[339091507,1727238638752,-299.925789,0.00016338,2]
[339091508,1727238638761,-151.0,0.00016338,2]
[339091509,1727238638770,-151.0,0.00016338,2]
[339091510,1727238638779,-151.0,0.00016338,2]
[339091511,1727238638788,-151.0,0.00016338,2]
[339091512,1727238638797,-151.0,0.00016338,2]
[339091513,1727238638806,-274.616911,0.00016338,2]
[339091514,1727238638815,-274.616911,0.00016338,2]
[339091515,1727238638825,-151.0,0.00016338,2]
[339091516,1727238638835,-321.477418,0.00016338,2]
[339091517,1727238638846,-321.477418,0.00016338,2]
[339091518,1727238638856,-500.0,0.00016373,2]
[339091519,1727238638865,-500.0,0.00016373,2]
[339091520,1727238638875,-500.0,0.00016373,2]
[339091521,1727238638884,-500.0,0.00016373,2]
[339091522,1727238638897,-500.0,0.00016373,2]
[339091523,1727238638908,-500.87185667,0.00016373,2]
[339091524,1727238638918,-175.04164938,0.00016387,2]
[339091525,1727238638932,-500.0,0.00016387,2]
[339091526,1727238638942,-169.43918135,0.00016387,2]
[339091527,1727238638952,-500.0,0.00016387,2]
[339091528,1727238638962,-312.1129983,0.00016387,2]
[339091529,1727238638971,-500.0,0.00016387,2]
[339091530,1727238638980,-226.17317714,0.00016387,2]
[339091531,1727238638989,-41969.7704383,0.00016388,2]
[339091532,1727238638998,-34484.1660616,0.00016388,2]
[339091565,1727238640386,-28521.8522018,0.00016388,2]
[339091567,1727238640395,-167879.081753,0.00016398,2]
[339091569,1727238640405,-9636.05643496,0.00016398,2]
[339091620,1727238643400,-153.0,0.000162,2]
[339091622,1727238643409,-802.0,0.00016398,2]
[339091702,1727238646486,-500.0,0.00016373,2]
[339091703,1727238646496,-1185.45,0.00016398,2]